fUST/lending_fUST_20250613
["ID","MTS","AMOUNT","RATE_DAILY","PERIOD"]
[365555144,1749782839411,-2685.32950693,0.00023989,2]
[365555145,1749782839437,-3141.8355231,0.00023989,2]
[365555146,1749782839470,-3141.8355231,0.00023989,2]
[365555147,1749782839495,-3141.8355231,0.00023989,2]
[365555148,1749782839524,-3141.8355231,0.00023989,2]
[365555149,1749782839548,-3141.8355231,0.00023989,2]
[365555150,1749782839579,-3141.8355231,0.00023989,2]
[365555151,1749782839612,-3141.8355231,0.00023989,2]
[365555152,1749782839641,-3141.8355231,0.00023989,2]
[365555153,1749782839667,-3141.8355231,0.00023989,2]
[365555154,1749782839697,-65398.5681219,0.0002399,2]
[365555155,1749782839723,-151.0,0.0002399,7]
[365555156,1749782839750,-151.0,0.0002399,7]
[365555157,1749782839776,-151.0,0.0002399,7]
[365555158,1749782839804,-151.0,0.0002399,7]
[365555159,1749782839828,-151.0,0.0002399,7]
[365555160,1749782839853,-1261.307699,0.0002399,7]
[365555161,1749782839881,-1261.307699,0.0002399,7]
[365555162,1749782839907,-151.0,0.0002399,7]
[365555163,1749782839930,-155.13404,0.0002399,7]
[365555164,1749782839959,-155.13404,0.0002399,7]
[365555165,1749782839984,-213.440577,0.0002399,7]
[365555166,1749782840010,-213.440577,0.0002399,7]
[365555167,1749782840037,-3376.67433438,0.00024,2]
[365555168,1749782840068,-1866.69654613,0.00024,2]
[365555169,1749782840095,-163646.79544112,0.00024,3]
[365555171,1749782928241,592.38,0.00024658,120]
[365555176,1749782947151,-804.11654845,0.00020752,2]
[365555219,1749783032514,-812.78,0.00020428,2]
[365555220,1749783032523,-500.0,0.00020593,2]
[365555221,1749783032532,-1625.57,0.00021401,2]
[365555222,1749783032541,-238.48430872,0.00022374,2]
[365555223,1749783032553,-1886.4457265,0.00022374,2]
[365555401,1749783039449,-313.41996478,0.00022374,2]
[365555403,1749783039460,-424.32678023,0.00022529,2]
[365555405,1749783039470,-229.78555783,0.00022529,2]
[365555407,1749783039481,-835.28007164,0.00022529,2]
[365555409,1749783039491,-160.0,0.00022529,2]
[365555410,1749783039502,-460.13547489,0.00022785,2]
[365555411,1749783039512,-460.0,0.00022999,4]
[365555412,1749783039523,-1754.4414491,0.0002315,2]
[365555413,1749783039532,-460.0,0.00023273,4]
[365555414,1749783039542,-3251.13,0.00023347,2]
[365555415,1749783039553,-460.0,0.00023547,4]
[365555416,1749783039563,-300.0,0.00023714,2]
[365555417,1749783039573,-229.78555783,0.000238,3]
[365555418,1749783039582,-460.0,0.00023821,4]
[365555419,1749783039593,-266.0205,0.00023914,3]
[365555420,1749783039607,-500.0,0.00023973,2]
[365555421,1749783039617,-520.50291271,0.00023973,2]
[365555422,1749783039627,-151.0,0.00023984,7]
[365555423,1749783039639,-207.4,0.00023986,2]
[365555424,1749783039650,-212.5,0.0002399,10]
[365555425,1749783039660,-177.08,0.0002399,10]
[365555426,1749783039670,-102181.86686818,0.00024,3]
[365555706,1749783043521,-150.0,0.00023805,2]
[365555707,1749783043531,-4740.6950137,0.00024,3]
[365555708,1749783043543,-11101.21543401,0.00024,3]
[365555709,1749783043554,-4282.89533426,0.00024,3]
[365555786,1749783044501,-9641.04057828,0.00024,3]
[365555788,1749783044513,-817.84,0.00024,3]
[365556517,1749783068469,3089.0,0.00024658,120]
[365556520,1749783149770,324.004797,0.00013699,2]
[365556546,1749784052122,-2124.86374857,0.000181,2]
[365556547,1749784052143,-629.61801155,0.00019556,2]
[365556548,1749784052165,-324.004797,0.00020187,2]
[365556549,1749784052187,-500.0,0.00020593,2]
[365556550,1749784052208,-201.20265653,0.00020652,2]
[365556551,1749784052229,-452.7093632,0.00021133,2]
[365556552,1749784052249,-535.06311085,0.00021331,2]
[365556553,1749784052270,-791.34,0.00021423,2]
[365556554,1749784052291,-810.0,0.0002183,2]
[365556555,1749784052311,-864.2992677,0.00021831,2]
[365556556,1749784052332,-300.0,0.00021851,2]
[365556557,1749784052352,-681.93207367,0.00021852,2]
[365556558,1749784052373,-286.43011474,0.000219,2]
[365556559,1749784052393,-300.0,0.00021916,2]
[365556560,1749784052412,-500.0,0.00021917,2]
[365556561,1749784052435,-502.37999816,0.00021917,2]
[365556562,1749784052456,-783.19,0.00022184,6]
[365556563,1749784052478,-214.79635296,0.00022184,2]
[365556564,1749784052498,-783.19,0.00022284,7]
[365556565,1749784052519,-783.19,0.00022384,5]
[365556566,1749784052542,-491.04888511,0.0002243,2]
[365556567,1749784052562,-783.19,0.00022484,3]
[365556568,1749784052583,-171.75100116,0.00022516,2]
[365556569,1749784052606,-202.14242784,0.00022549,4]
[365556570,1749784052627,-460.0,0.00022549,4]
[365556571,1749784052648,-424.32678023,0.0002255,2]
[365556572,1749784052669,-835.28007164,0.0002255,2]
[365556573,1749784052691,-160.0,0.0002255,2]
[365556574,1749784052713,-11864.63410519,0.0002255,2]
[365556575,1749784052737,-783.19,0.00022584,3]
[365556576,1749784052760,-207.4,0.00022616,2]
[365556577,1749784052780,-783.19,0.00022684,6]
[365556578,1749784052800,-783.19,0.00022784,5]
[365556579,1749784052821,-460.0,0.00022823,4]
[365556580,1749784052841,-783.19,0.00022884,2]
[365556581,1749784052862,-783.19,0.00022984,2]
[365556582,1749784052882,-150.0,0.00023,2]
[365556583,1749784052903,-164.582,0.00023,2]
[365556584,1749784052924,-783.19,0.00023084,5]
[365556585,1749784052945,-171.75100115,0.00023093,2]
[365556586,1749784052966,-460.0,0.00023097,4]
[365556587,1749784052986,-783.19,0.00023184,6]
[365556588,1749784053006,-783.19,0.00023284,7]
[365556589,1749784053033,-1582.68,0.0002337,2]
[365556590,1749784053056,-460.0,0.00023371,4]
[365556591,1749784053078,-783.19,0.00023384,6]
[365556592,1749784053101,-783.19,0.00023484,7]
[365556593,1749784053124,-228.017571,0.0002352,3]
[365556594,1749784053146,-783.19,0.00023584,4]
[365556595,1749784053168,-460.0,0.00023645,4]
[365556596,1749784053193,-171.75100115,0.0002367,2]
[365556597,1749784053215,-783.19,0.00023684,4]
[365556598,1749784053237,-783.19,0.00023784,4]
[365556599,1749784053265,-460.0,0.00023798,4]
[365556600,1749784053289,-160.0,0.00023799,2]
[365556601,1749784053312,-150.0,0.00023805,2]
[365556602,1749784053333,-150.0,0.00023805,2]
[365556603,1749784053353,-150.0,0.00023805,2]
[365556604,1749784053375,-150.0,0.00023805,2]
[365556605,1749784053397,-405.0,0.00023805,2]
[365556606,1749784053420,-420.0,0.00023817,2]
[365556607,1749784053446,-242.0,0.00023818,2]
[365556608,1749784053468,-806.78523624,0.00023824,2]
[365556609,1749784053491,-783.19,0.00023884,4]
[365556610,1749784053514,-800.0,0.00023885,2]
[365556611,1749784053536,-1548.70009748,0.000239,2]
[365556612,1749784053558,-173.72164301,0.000239,2]
[365556613,1749784053582,-460.0,0.00023919,4]
[365556614,1749784053605,-229.78555783,0.00023946,2]
[365556615,1749784053629,-500.0,0.00023973,2]
[365556616,1749784053650,-542.29624355,0.00023973,2]
[365556617,1749784053673,-563.10159895,0.00023973,2]
[365556618,1749784053694,-507.63486962,0.00023973,2]
[365556619,1749784053715,-503.58855366,0.00023973,2]
[365556620,1749784053736,-500.0,0.00023973,2]
[365556621,1749784053758,-500.0,0.00023973,2]
[365556622,1749784053780,-503.45026366,0.00023973,2]
[365556623,1749784053806,-513.31206178,0.00023973,2]
[365556624,1749784053829,-500.80733449,0.00023973,2]
[365556625,1749784053850,-783.19,0.00023984,2]
[365556626,1749784053873,-151.0,0.00023984,7]
[365556627,1749784053895,-215.0738,0.00023985,2]
[365556628,1749784053915,-5339.97,0.00023989,10]
[365556629,1749784053938,-4449.97,0.00023989,10]
[365556630,1749784053959,-3708.31,0.00023989,10]
[365556631,1749784053980,-3090.26,0.00023989,10]
[365556632,1749784054002,-307.04,0.0002399,3]
[365556633,1749784054024,-500.0,0.00023998,2]
[365556634,1749784054045,-500.0,0.00023998,2]
[365556635,1749784054067,-500.0,0.00023998,2]
[365556636,1749784054087,-500.0,0.00023998,2]
[365556637,1749784054109,-500.0,0.00023998,2]
[365556638,1749784054129,-239.2971387,0.00023998,2]
[365556639,1749784054151,-500.0,0.00023998,2]
[365556640,1749784054338,-500.0,0.00023998,2]
[365556641,1749784054363,-500.0,0.00023998,2]
[365556642,1749784054386,-500.0,0.00023998,2]
[365556643,1749784054408,-500.0,0.00023998,2]
[365556644,1749784054436,-500.0,0.00023998,2]
[365556645,1749784054459,-500.0,0.00023998,2]
[365556646,1749784054483,-500.0,0.00023998,2]
[365556647,1749784054504,-500.0,0.00023998,2]
[365556648,1749784054529,-500.0,0.00023998,2]
[365556649,1749784054551,-500.0,0.00023998,2]
[365556650,1749784054572,-500.0,0.00023998,2]
[365556651,1749784054593,-500.0,0.00023998,2]
[365556652,1749784054614,-500.0,0.00023998,2]
[365556653,1749784054639,-500.0,0.00023998,2]
[365556654,1749784054661,-500.0,0.00023998,2]
[365556655,1749784054684,-500.0,0.00023998,2]
[365556656,1749784054706,-500.0,0.00023998,2]
[365556657,1749784054728,-500.0,0.00023998,2]
[365556658,1749784054749,-500.0,0.00023998,2]
[365556659,1749784054771,-500.0,0.00023998,2]
[365556660,1749784054792,-500.0,0.00023998,2]
[365556661,1749784054814,-500.0,0.00023998,2]
[365556662,1749784054835,-500.0,0.00023998,2]
[365556663,1749784054859,-500.0,0.00023998,2]
[365556664,1749784054883,-559.77239449,0.00023998,2]
[365556665,1749784054914,-500.0,0.00023998,2]
[365556666,1749784054937,-500.0,0.00023998,2]
[365556667,1749784054960,-2334.90350939,0.00023999,2]
[365556668,1749784054982,-2334.90350939,0.00023999,2]
[365556669,1749784055003,-2334.90350939,0.00023999,2]
[365556670,1749784055023,-2334.90350939,0.00023999,2]
[365556671,1749784055046,-2334.90350939,0.00023999,2]
[365556672,1749784055067,-2334.90350939,0.00023999,2]
[365556673,1749784055089,-2334.90350939,0.00023999,2]
[365556674,1749784055110,-2334.90350939,0.00023999,2]
[365556675,1749784055132,-2334.90350939,0.00023999,2]
[365556676,1749784055153,-2334.90350939,0.00023999,2]
[365556677,1749784055176,-2334.90350939,0.00023999,2]
[365556678,1749784055197,-2334.90350939,0.00023999,2]
[365556679,1749784055219,-2334.90350939,0.00023999,2]
[365556680,1749784055242,-2334.90350938,0.00023999,2]
[365556681,1749784055264,-2334.90350939,0.00023999,2]
[365556682,1749784055291,-2334.90350939,0.00023999,2]
[365556683,1749784055313,-2490.56374333,0.00023999,2]
[365556684,1749784055334,-2490.56374333,0.00023999,2]
[365556685,1749784055357,-2490.56374333,0.00023999,2]
[365556686,1749784055378,-2490.56374333,0.00023999,2]
[365556687,1749784055399,-2609.6776615,0.00023999,2]
[365556688,1749784055419,-2609.6776615,0.00023999,2]
[365556689,1749784055448,-2609.6776615,0.00023999,2]
[365556690,1749784055470,-460.0,0.00023999,2]
[365556691,1749784055491,-460.0,0.00023999,4]
[365556692,1749784055513,-64156.6585623,0.00024,3]
[365556696,1749784156919,634.00989026,0.00024,120]
[365556697,1749784166141,-716.97772113,0.00021223,2]
[365556698,1749784167161,308.812298,0.00013699,2]
[365556699,1749784170256,-281.24753263,0.00020187,2]
[365556701,1749784212414,742.08519105,0.00023539,120]
[365556730,1749784232581,-27.56476537,0.00020187,2]
[365556732,1749784232591,-209.3445344,0.000219,2]
[365556733,1749784232601,-460.0,0.00022549,4]
[365556734,1749784232610,-460.0,0.00022823,4]
[365556735,1749784232619,-460.0,0.00023097,4]
[365556736,1749784232629,-365.0707398,0.00023288,2]
[365556737,1749784232638,-214.19666807,0.00023371,4]
[365556739,1749784232647,-195.443632,0.0002352,3]
[365556742,1749784232658,-176.18059037,0.000239,2]
[365556744,1749784232668,-160.0,0.0002397,2]
[365556745,1749784232677,-153.04,0.0002399,7]
[365556747,1749784232687,-2575.21,0.0002399,10]
[365556749,1749784232696,-2146.01,0.0002399,10]
[365556751,1749784232706,-655.90425951,0.0002399,10]
[365556755,1749784232738,-1132.43574049,0.0002399,10]
[365556756,1749784232749,-1490.29,0.0002399,10]
[365556757,1749784232758,-300.0,0.00023996,2]
[365556759,1749784232768,-244.31153974,0.00023997,2]
[365556768,1749784238684,-460.0,0.00023798,4]
[365556769,1749784238694,-180.01524049,0.00023997,2]
[365556770,1749784238704,-160.0,0.00023997,2]
[365556771,1749784238714,-835.28007164,0.00023997,2]
[365556773,1749784238723,-500.0,0.00023999,2]
[365556775,1749784238733,-555.97723945,0.00023999,2]
[365556776,1749784238742,-500.0,0.00023999,2]
[365556777,1749784238752,-1737.6853,0.00023999,2]
[365556778,1749784238761,-3646.12753325,0.00024,3]
[365556779,1749784238774,-394.55506593,0.00024,3]
[365556780,1749784238787,-24104.18528223,0.00024,3]
[365556784,1749784240058,-51378.71202804,0.00024,3]
[365556785,1749784240073,-624.20491612,0.00024,3]
[365556786,1749784240085,-2879.44590219,0.00024,3]
[365556787,1749784240097,-5171.81020467,0.00024,3]
[365556813,1749784240782,-774.71,0.00021324,2]
[365556815,1749784240792,-1549.42,0.00023263,2]
[365556817,1749784240802,-5552.66689364,0.00024,3]
[365556819,1749784240815,-480.0,0.00024,3]
[365556881,1749784243783,-1241.2,0.0002399,10]
[365556883,1749784243796,-0.71,0.0002399,10]
[365556885,1749784243805,-12615.98165238,0.00024,3]
[365556889,1749784243836,-206658.46124835,0.00024,3]
[365556891,1749784243849,-64988.48088803,0.00024,3]
[365556893,1749784243862,-25836.9645,0.00024,3]
[365556897,1749784243874,-594.61232,0.00024,3]
[365557169,1749784246626,-405.0,0.0002398,2]
[365557170,1749784246636,-3017.24504266,0.00024,3]
[365557381,1749784272119,1788.06832839,0.000246,120]
[365557382,1749784392897,246.74536143,0.00016434,2]
[365557385,1749784630167,1409.21716,0.00024921,60]
[365557395,1749785243118,-1960.90069614,0.00018946,6]
[365557396,1749785243140,-179.9820018,0.00019237,2]
[365557397,1749785243169,-500.0,0.00020593,2]
[365557398,1749785243192,-757.44,0.00021216,2]
[365557399,1749785243215,-219.9833708,0.000219,2]
[365557400,1749785243236,-235.3532387,0.00021967,2]
[365557401,1749785243257,-152.31707378,0.00022,3]
[365557402,1749785243280,-300.0,0.00022366,2]
[365557403,1749785243302,-300.0,0.00022366,2]
[365557404,1749785243322,-6419.48061519,0.00022367,2]
[365557405,1749785243342,-250.44378577,0.00022381,2]
[365557406,1749785243362,-2183.2080085,0.00022381,2]
[365557407,1749785243383,-766.1209014,0.000225,2]
[365557408,1749785243405,-207.4,0.00022616,2]
[365557409,1749785243426,-160.0,0.0002263,2]
[365557410,1749785243447,-324.46758832,0.00022634,2]
[365557411,1749785243466,-160.0,0.00022778,2]
[365557412,1749785243487,-424.32678023,0.00022778,2]
[365557413,1749785243507,-835.28007164,0.00022778,2]
[365557414,1749785243530,-500.0,0.00022785,2]
[365557415,1749785243559,-212.80025643,0.000229,8]
[365557416,1749785243579,-151.0,0.00023,5]
[365557417,1749785243601,-151.0,0.00023,5]
[365557418,1749785243621,-151.0,0.00023,3]
[365557419,1749785243642,-1514.88,0.00023144,2]
[365557420,1749785243670,-212.80025637,0.0002315,8]
[365557421,1749785243696,-212.80025637,0.000234,9]
[365557422,1749785243716,-167.523113,0.0002352,3]
[365557423,1749785243736,-151.0,0.000236,10]
[365557424,1749785243764,-212.80025637,0.0002365,9]
[365557425,1749785243786,-164.223,0.0002365,4]
[365557426,1749785243806,-438.26093488,0.00023694,2]
[365557427,1749785243828,-162.33820102,0.00023885,2]
[365557428,1749785243851,-208.97807299,0.000239,2]
[365557429,1749785243879,-212.80025637,0.000239,10]
[365557430,1749785243899,-11864.63410519,0.00023953,2]
[365557431,1749785243924,-460.0,0.00023959,4]
[365557432,1749785243946,-460.0,0.00023969,4]
[365557433,1749785243968,-460.0,0.00023972,4]
[365557434,1749785243988,-460.48953065,0.00023973,2]
[365557435,1749785244008,-501.63536488,0.00023973,2]
[365557436,1749785244031,-513.63256357,0.00023973,2]
[365557437,1749785244052,-500.0,0.00023973,2]
[365557438,1749785244072,-502.20439799,0.00023973,2]
[365557439,1749785244092,-405.0,0.0002398,2]
[365557440,1749785244113,-215.0738,0.00023985,2]
[365557441,1749785244137,-460.0,0.00023986,4]
[365557442,1749785244159,-1034.92,0.0002399,10]
[365557443,1749785244180,-862.43,0.0002399,10]
[365557444,1749785244203,-718.7,0.0002399,10]
[365557445,1749785244226,-598.91,0.0002399,10]
[365557446,1749785244248,-500.0,0.00023999,2]
[365557447,1749785244274,-500.0,0.00023999,2]
[365557448,1749785244298,-500.0,0.00023999,2]
[365557449,1749785244320,-500.0,0.00023999,2]
[365557450,1749785244342,-638.13069875,0.00023999,2]
[365557451,1749785244364,-460.0,0.00023999,2]
[365557452,1749785244387,-460.0,0.00023999,4]
[365557453,1749785244408,-160.0,0.00023999,2]
[365557454,1749785244429,-56246.28786638,0.00024,3]
[365557455,1749785249110,-499.09,0.0002399,10]
[365557456,1749785249132,-1656.2345879,0.00024,3]
[365557459,1749785345148,-471.3690685,0.00020593,2]
[365557498,1749785431816,-345.86987729,0.00019237,2]
[365557501,1749785431827,-28.6309315,0.00020593,2]
[365557503,1749785431837,-770.25,0.00021438,2]
[365557505,1749785431846,-167.04650588,0.000218,2]
[365557507,1749785431856,-150.0,0.000219,2]
[365557509,1749785431866,-424.32678023,0.00022565,2]
[365557511,1749785431876,-835.28007164,0.00022565,2]
[365557513,1749785431886,-220.830197,0.00022593,2]
[365557515,1749785431899,-500.0,0.00022785,2]
[365557517,1749785431908,-183.928929,0.00022998,2]
[365557519,1749785431918,-918.29054147,0.00023387,2]
[365557543,1749785437766,-622.19945853,0.00023387,2]
[365557544,1749785437777,-167.523114,0.0002352,3]
[365557545,1749785437788,-300.0,0.00023599,2]
[365557547,1749785437799,-5600.94206452,0.000236,2]
[365557548,1749785437810,-340.0,0.00023693,4]
[365557549,1749785437820,-415.91,0.0002379,10]
[365557550,1749785437831,-466.01199313,0.00023799,2]
[365557551,1749785437843,-6832.97548839,0.000238,3]
[365557552,1749785437856,-2218.39860617,0.000238,3]
[365557553,1749785438552,-41355.4120575,0.000238,3]
[365557572,1749785439962,-639.15093688,0.000238,3]
[365557854,1749785442917,-42465.23736083,0.000238,3]
[365557928,1749785445975,-188026.14314542,0.000238,3]
[365557931,1749785445986,-212.80025637,0.000239,10]
[365557935,1749785445995,-460.0,0.00023972,4]
[365557938,1749785446004,-573.63941129,0.00023973,2]
[365557941,1749785446014,-460.0,0.00023986,4]
[365557944,1749785446023,-2097.27375222,0.00023999,2]
[365557947,1749785446032,-2097.27375222,0.00023999,2]
[365557952,1749785446042,-2097.27375222,0.00023999,2]
[365557956,1749785446052,-2097.27375222,0.00023999,2]
[365557960,1749785446061,-2097.27375222,0.00023999,2]
[365557964,1749785446070,-2097.27375222,0.00023999,2]
[365557968,1749785446079,-2097.27375222,0.00023999,2]
[365557972,1749785446089,-2097.27375222,0.00023999,2]
[365557975,1749785446098,-2097.27375222,0.00023999,2]
[365557977,1749785446108,-2097.27375222,0.00023999,2]
[365557981,1749785446118,-2097.27375222,0.00023999,2]
[365557983,1749785446127,-2097.27375222,0.00023999,2]
[365557986,1749785446136,-2097.27375222,0.00023999,2]
[365557988,1749785446146,-2097.27375222,0.00023999,2]
[365557990,1749785446155,-2097.27375222,0.00023999,2]
[365557992,1749785446165,-2097.27375222,0.00023999,2]
[365557993,1749785446174,-2097.27375222,0.00023999,2]
[365557995,1749785446185,-2097.27375222,0.00023999,2]
[365557997,1749785446196,-2097.27375222,0.00023999,2]
[365558000,1749785446206,-2097.27375222,0.00023999,2]
[365558002,1749785446215,-2097.27375222,0.00023999,2]
[365558004,1749785446225,-268919.24507743,0.00024,3]
[365558156,1749785531257,288.007593,0.00013699,2]
[365558166,1749786007223,1811.52658,0.00022,120]
[365558169,1749786357134,-288.007593,0.00020187,2]
[365558170,1749786357158,-500.0,0.00020593,2]
[365558171,1749786357184,-766.29,0.00021344,2]
[365558172,1749786357207,-150.0,0.000219,2]
[365558173,1749786357241,-36.30848323,0.00022,2]
[365558178,1749786429923,-356.65245879,0.00020593,2]
[365558179,1749786431132,-143.34754121,0.00020593,2]
[365558180,1749786431154,-773.51,0.00021344,2]
[365558181,1749786431175,-161.69151677,0.00022,2]
[365558182,1749786431196,-300.0,0.00022564,2]
[365558183,1749786431220,-300.0,0.00022564,2]
[365558184,1749786431242,-160.0,0.00022565,2]
[365558185,1749786431263,-160.0,0.00022565,2]
[365558186,1749786431285,-11864.63410519,0.00022565,2]
[365558187,1749786431304,-160.0,0.00022565,2]
[365558188,1749786431327,-844.94977992,0.00022565,2]
[365558189,1749786431347,-160.0,0.00022565,2]
[365558190,1749786431366,-160.0,0.00022565,2]
[365558191,1749786431386,-424.32678023,0.00022565,2]
[365558192,1749786431405,-160.0,0.00022565,2]
[365558193,1749786431426,-160.0,0.00022565,2]
[365558194,1749786431446,-213.24139183,0.00022565,2]
[365558195,1749786431466,-160.0,0.00022565,2]
[365558196,1749786431489,-229.78555783,0.00022565,2]
[365558197,1749786431508,-3963.4755629,0.00022565,2]
[365558198,1749786431529,-500.0,0.00022785,2]
[365558199,1749786431549,-183.9289308,0.00022821,2]
[365558200,1749786431570,-1547.02,0.00023284,2]
[365558201,1749786431591,-167.523114,0.0002352,3]
[365558202,1749786431613,-178.0,0.00023811,2]
[365558203,1749786431634,-162.82789795,0.000239,2]
[365558204,1749786431656,-455.0,0.00023912,2]
[365558205,1749786431677,-242.86239247,0.00023913,2]
[365558206,1749786431698,-835.28007164,0.00023954,2]
[365558207,1749786431720,-207.4,0.00023955,2]
[365558208,1749786431745,-164.027,0.00023968,5]
[365558209,1749786431766,-512.34941378,0.00023973,2]
[365558210,1749786431786,-504.37435075,0.00023973,2]
[365558211,1749786431807,-500.0,0.00023973,2]
[365558212,1749786431828,-587.54209348,0.00023973,2]
[365558213,1749786431849,-513.09277418,0.00023973,2]
[365558214,1749786431869,-505.47568824,0.00023973,2]
[365558215,1749786431893,-501.64658608,0.00023973,2]
[365558216,1749786431913,-505.9369347,0.00023973,2]
[365558217,1749786431934,-500.0,0.00023973,2]
[365558218,1749786431955,-506.78013545,0.00023973,2]
[365558219,1749786431976,-508.13161699,0.00023973,2]
[365558220,1749786432000,-503.4414321,0.00023973,2]
[365558221,1749786432020,-501.40887103,0.00023973,2]
[365558222,1749786432042,-500.0,0.00023973,2]
[365558223,1749786432062,-405.0,0.0002398,2]
[365558224,1749786432083,-346.59,0.0002399,10]
[365558225,1749786432104,-288.83,0.0002399,10]
[365558226,1749786432128,-240.69,0.0002399,10]
[365558227,1749786432149,-200.58,0.0002399,10]
[365558228,1749786432170,-460.0,0.00023993,4]
[365558229,1749786432192,-500.0,0.00023999,2]
[365558230,1749786432218,-500.0,0.00023999,2]
[365558231,1749786432246,-297.93124611,0.00023999,2]
[365558232,1749786432288,-500.0,0.00023999,2]
[365558233,1749786432322,-500.0,0.00023999,2]
[365558234,1749786432343,-361.42593878,0.00023999,2]
[365558235,1749786432365,-502.27916581,0.00023999,2]
[365558236,1749786432389,-500.0,0.00023999,2]
[365558237,1749786432425,-500.0,0.00023999,2]
[365558238,1749786432447,-300.0,0.00023999,2]
[365558239,1749786432468,-500.0,0.00023999,2]
[365558240,1749786432491,-202.21811693,0.00023999,2]
[365558241,1749786432512,-455.26818619,0.00023999,2]
[365558242,1749786432534,-160.0,0.00023999,2]
[365558243,1749786432555,-460.0,0.00023999,2]
[365558244,1749786432577,-460.0,0.00023999,4]
[365558245,1749786432600,-460.0,0.00023999,4]
[365558246,1749786432620,-460.0,0.00023999,4]
[365558247,1749786432641,-160850.40167408,0.00024,3]
[365558248,1749786448127,-212.80025637,0.000239,10]
[365558249,1749786448149,-167.15,0.0002399,10]
[365558250,1749786448172,-542.32112438,0.00023999,4]
[365558251,1749786448194,-93715.06287944,0.00024,3]
[365558260,1749786507498,2187.0,0.00024924,120]
[365558261,1749786542589,268.67565,0.00013699,2]
[365558263,1749786549532,-268.67565,0.00020187,2]
[365558264,1749786549555,-683.48764012,0.00021354,2]
[365558268,1749786632033,-745.51,0.00021388,2]
[365558269,1749786632043,-286.41227776,0.000219,2]
[365558270,1749786632053,-220.830197,0.00022855,2]
[365558271,1749786632062,-1491.02,0.00023333,2]
[365558272,1749786632071,-167.523114,0.00023519,3]
[365558273,1749786632081,-212.80025637,0.000239,10]
[365558274,1749786632090,-162.82789794,0.000239,2]
[365558275,1749786632099,-207.4,0.00023986,2]
[365558276,1749786632118,-835.75,0.0002399,10]
[365558277,1749786632128,-835.28007164,0.00023997,2]
[365558278,1749786632138,-500.0,0.00023998,4]
[365558279,1749786632147,-460.0,0.00023999,4]
[365558280,1749786632158,-215.93687914,0.00023999,4]
[365558281,1749786632168,-300.0,0.00023999,2]
[365558282,1749786632177,-11390.37613504,0.00024,3]
[365558283,1749786632198,-99703.35855679,0.00024,3]
[365558474,1749786638701,-223.08,0.0002243,2]
[365558475,1749786638711,-21347.44847293,0.00024,3]
[365558476,1749786638722,-1187.80293709,0.00024,3]
[365558529,1749786640232,-168.65075801,0.000239,2]
[365558531,1749786640242,-1397.92562579,0.00024,3]
[365558747,1749786646075,-500.0,0.00023999,2]
[365558748,1749786646085,-38111.26694191,0.00024,3]
[365558755,1749787390482,555.04231856,0.00024927,60]
[365558758,1749787486379,334.99783874,0.00024654,120]
[365558760,1749787534110,-168.221719,0.00019975,2]
[365558761,1749787534133,-500.0,0.00020593,2]
[365558762,1749787534154,-213.11819716,0.00020595,2]
[365558763,1749787534176,-16.42558507,0.00021232,2]
[365558765,1749787547290,251.15536,0.00013699,2]
[365558767,1749787640080,-251.15536,0.00020187,2]
[365558768,1749787640100,-764.7,0.00021219,2]
[365558769,1749787640121,-190.94151851,0.000219,2]
[365558770,1749787640142,-151.03719653,0.00022715,2]
[365558771,1749787640164,-160.0,0.00022765,2]
[365558772,1749787640184,-300.0,0.0002281,2]
[365558773,1749787640205,-300.0,0.0002281,2]
[365558774,1749787640225,-12531.02669373,0.00022811,2]